fUST/lending_fUST_20241003
["ID","MTS","AMOUNT","RATE_DAILY","PERIOD"]
[339718902,1727891447839,-500.0,0.00013698,2]
[339718903,1727891447849,-552.32423419,0.00013698,2]
[339718904,1727891447859,-500.0,0.00013698,2]
[339718905,1727891447868,-500.0,0.00013698,2]
[339718906,1727891447879,-500.0,0.00013698,2]
[339718907,1727891447890,-500.0,0.00013698,2]
[339718908,1727891447900,-500.0,0.00013698,2]
[339718909,1727891447910,-500.0,0.00013698,2]
[339718910,1727891447922,-2222.73,0.00013698,2]
[339718911,1727891447932,-500.0,0.00013698,2]
[339718912,1727891447945,-500.0,0.00013698,2]
[339718913,1727891447955,-500.0,0.00013698,2]
[339718914,1727891447964,-500.0,0.00013698,2]
[339718915,1727891447975,-500.0,0.00013698,2]
[339718916,1727891447985,-500.0,0.00013698,2]
[339718917,1727891447995,-500.0,0.00013698,2]
[339718918,1727891448005,-500.0,0.00013698,2]
[339718919,1727891448016,-500.0,0.00013698,2]
[339718920,1727891448026,-500.0,0.00013698,2]
[339718921,1727891448036,-500.0,0.00013698,2]
[339718922,1727891448047,-513.00640737,0.00013698,2]
[339718923,1727891448057,-662.82,0.00013698,2]
[339718924,1727891448068,-412.9190232,0.00013698,2]
[339718925,1727891448077,-500.0,0.00013698,2]
[339718926,1727891448088,-534.71,0.00013698,2]
[339718927,1727891448099,-500.0,0.00013698,2]
[339718928,1727891448110,-1093.08,0.00013698,2]
[339718929,1727891448120,-500.0,0.00013698,2]
[339718930,1727891448130,-500.0,0.00013698,2]
[339718931,1727891448140,-500.0,0.00013698,2]
[339718932,1727891448150,-500.0,0.00013698,2]
[339718933,1727891448160,-3067.06343715,0.00013698,2]
[339718934,1727891448810,-797.95656285,0.00013698,2]
[339718935,1727891448820,-492.28028169,0.00013698,2]
[339718936,1727891448830,-1044.82,0.00013698,2]
[339718937,1727891448839,-500.0,0.00013698,2]
[339718938,1727891448849,-241.54315546,0.00013698,2]
[339718939,1727891448862,-258.45684454,0.00013698,2]
[339718940,1727891448872,-1238.83,0.00013698,2]
[339718941,1727891448882,-530.69651116,0.00013698,2]
[339718942,1727891448892,-500.0,0.00013698,2]
[339718943,1727891448902,-500.0,0.00013698,2]
[339718944,1727891448911,-600.0,0.00013698,2]
[339718945,1727891448921,-172.06719907,0.00013698,2]
[339718946,1727891448931,-500.0,0.00013698,2]
[339718947,1727891448944,-500.0,0.00013698,2]
[339718948,1727891448954,-40.71982764,0.00013698,2]
[339718949,1727891451519,533.46,0.00010959,2]
[339718950,1727891462091,444.55,0.00010959,2]
[339718951,1727891472675,370.46,0.00010959,2]
[339718952,1727891483285,308.71,0.00010959,2]
[339718953,1727891487847,3000.0,0.00012699,2]
[339718954,1727891493824,257.26,0.00010959,2]
[339718955,1727891504658,214.38,0.00010959,2]
[339718956,1727891515366,178.65,0.00010959,2]
[339718957,1727891541980,893.3,0.00010959,2]
[339718961,1727892345143,-300.0,0.00012097,2]
[339718962,1727892345165,-300.0,0.00012097,2]
[339718963,1727892345188,-2646.02818476,0.00012098,2]
[339718964,1727892353099,-361.61047289,0.00012098,2]
[339718965,1727892435135,-300.0,0.00012097,2]
[339718966,1727892435157,-180.00000006,0.00012097,2]
[339718967,1727892435187,-119.99999994,0.00012097,2]
[339718968,1727892435213,-17428.28433218,0.00012098,2]
[339718969,1727892452371,-1833.44749095,0.00012098,2]
[339718970,1727892551116,-201.4890734,0.00011989,2]
[339718971,1727892551139,-2630.62951922,0.00012098,2]
[339718972,1727892551163,-165.561354,0.0001237,2]
[339718973,1727892551187,-165.561354,0.00012408,2]
[339718974,1727892551212,-165.561354,0.00012446,2]
[339718975,1727892551237,-165.561354,0.00012484,2]
[339718976,1727892551263,-165.561354,0.00012522,2]
[339718977,1727892551297,-165.561354,0.0001256,2]
[339718978,1727892551323,-165.561354,0.00012598,2]
[339718979,1727892551354,-165.561354,0.00012636,2]
[339718980,1727892551379,-165.561354,0.00012674,2]
[339718981,1727892551406,-165.561354,0.00012712,2]
[339718982,1727892551436,-165.561354,0.0001275,2]
[339718983,1727892551461,-165.561354,0.00012788,2]
[339719005,1727892631870,-165.561354,0.00012825,2]
[339719006,1727892631880,-165.561354,0.00012863,2]
[339719007,1727892631890,-165.561354,0.00012901,2]
[339719008,1727892631899,-165.561354,0.00012939,2]
[339719009,1727892631910,-165.561354,0.00012977,2]
[339719010,1727892631920,-306.0,0.00013,2]
[339719011,1727892631930,-165.561354,0.00013015,2]
[339719012,1727892631940,-768.0,0.000133,2]
[339719013,1727892631949,-482.38780283,0.00013573,2]
[339719014,1727892631959,-3438.71870085,0.00013578,2]
[339719015,1727892631969,-777.58595865,0.00013598,2]
[339719016,1727892631978,-152.03907526,0.00013618,2]
[339719017,1727892631989,-300.0,0.00013672,2]
[339719018,1727892631999,-300.0,0.00013672,2]
[339719019,1727892632009,-500.0,0.00013673,2]
[339719020,1727892632019,-500.0,0.00013673,2]
[339719021,1727892632029,-500.0,0.00013673,2]
[339719022,1727892632043,-500.0,0.00013673,2]
[339719023,1727892632053,-500.0,0.00013673,2]
[339719024,1727892632063,-500.0,0.00013673,2]
[339719025,1727892632074,-500.0,0.00013673,2]
[339719026,1727892632084,-1014.8247076,0.00013678,2]
[339719027,1727892632315,-12267.07563091,0.00013678,2]
[339719092,1727892640223,-500.0,0.00013673,2]
[339719094,1727892640233,-2335.74928141,0.00013678,2]
[339719096,1727892640245,-57782.03624088,0.00013678,2]
[339719098,1727892640255,-41552.8421766,0.00013678,2]
[339719099,1727892640265,-180962.152883,0.00013688,2]
[339719100,1727892640274,-228540.631971,0.00013688,2]
[339719101,1727892640285,-4092.12219774,0.00013689,2]
[339719102,1727892640295,-478.09454856,0.00013698,2]
[339719103,1727892640304,-500.0,0.00013698,2]
[339719104,1727892640315,-893.31,0.00013698,2]
[339719105,1727892640324,-500.0,0.00013698,2]
[339719106,1727892640335,-500.0,0.00013698,2]
[339719107,1727892640344,-169.96409514,0.00013698,2]
[339719108,1727892640354,-500.0,0.00013698,2]
[339719109,1727892640364,-500.0,0.00013698,2]
[339719110,1727892640374,-609.68,0.00013698,2]
[339719111,1727892640385,-500.0,0.00013698,2]
[339719112,1727892640395,-500.0,0.00013698,2]
[339719113,1727892640405,-500.0,0.00013698,2]
[339719114,1727892640590,-500.0,0.00013698,2]
[339719115,1727892640601,-500.0,0.00013698,2]
[339719116,1727892640611,-500.0,0.00013698,2]
[339719117,1727892640622,-500.0,0.00013698,2]
[339719118,1727892640636,-500.0,0.00013698,2]
[339719119,1727892640652,-500.0,0.00013698,2]
[339719120,1727892640666,-813.39,0.00013698,2]
[339719121,1727892640676,-185.24672044,0.00013698,2]
[339719122,1727892640685,-219.31813745,0.00013698,2]
[339719123,1727892640695,-500.0,0.00013698,2]
[339719124,1727892640705,-401.49013118,0.00013698,2]
[339719125,1727892640714,-196.49326061,0.00013698,2]
[339719126,1727892640724,-500.0,0.00013698,2]
[339719127,1727892640735,-500.0,0.00013698,2]
[339719128,1727892640745,-500.0,0.00013698,2]
[339719129,1727892640755,-500.0,0.00013698,2]
[339719130,1727892640765,-500.0,0.00013698,2]
[339719131,1727892640775,-500.0,0.00013698,2]
[339719132,1727892640784,-500.0,0.00013698,2]
[339719133,1727892640794,-500.0,0.00013698,2]
[339719134,1727892640803,-230.11529812,0.00013698,2]
[339719135,1727892640813,-500.0,0.00013698,2]
[339719136,1727892640823,-678.53,0.00013698,2]
[339719137,1727892640833,-897.68,0.00013698,2]
[339719138,1727892640843,-500.0,0.00013698,2]
[339719139,1727892640852,-500.0,0.00013698,2]
[339719140,1727892640862,-500.0,0.00013698,2]
[339719141,1727892640873,-500.0,0.00013698,2]
[339719142,1727892640886,-573.31,0.00013698,2]
[339719143,1727892640896,-500.0,0.00013698,2]
[339719144,1727892640906,-300.0,0.00013698,2]
[339719145,1727892640916,-697.21,0.00013698,2]
[339719146,1727892640925,-570.67,0.00013698,2]
[339719147,1727892640935,-345.14697001,0.00013698,2]
[339719148,1727892640946,-500.0,0.00013698,2]
[339719149,1727892640956,-500.0,0.00013698,2]
[339719150,1727892640965,-500.0,0.00013698,2]
[339719151,1727892640975,-500.0,0.00013698,2]
[339719152,1727892640985,-500.0,0.00013698,2]
[339719153,1727892640994,-500.0,0.00013698,2]
[339719154,1727892641004,-500.0,0.00013698,2]
[339719155,1727892641013,-1104.72,0.00013698,2]
[339719156,1727892641023,-572.07,0.00013698,2]
[339719157,1727892641032,-240.04941348,0.00013698,2]
[339719158,1727892641042,-500.0,0.00013698,2]
[339719159,1727892641052,-500.0,0.00013698,2]
[339719160,1727892641062,-500.0,0.00013698,2]
[339719161,1727892641072,-500.0,0.00013698,2]
[339719162,1727892641082,-500.0,0.00013698,2]
[339719163,1727892641091,-500.0,0.00013698,2]
[339719164,1727892641101,-1776.52,0.00013698,2]
[339719165,1727892641111,-500.0,0.00013698,2]
[339719166,1727892641120,-500.0,0.00013698,2]
[339719167,1727892641132,-518.46824491,0.00013698,2]
[339719168,1727892641142,-500.0,0.00013698,2]
[339719169,1727892641151,-500.0,0.00013698,2]
[339719170,1727892641161,-224.49839184,0.00013698,2]
[339719171,1727892641170,-500.0,0.00013698,2]
[339719172,1727892641180,-500.0,0.00013698,2]
[339719173,1727892641189,-500.0,0.00013698,2]
[339719174,1727892641199,-500.0,0.00013698,2]
[339719175,1727892641208,-603.35632666,0.00013698,2]
[339719176,1727892641218,-500.0,0.00013698,2]
[339719177,1727892641227,-500.0,0.00013698,2]
[339719178,1727892641237,-500.0,0.00013698,2]
[339719179,1727892641247,-500.0,0.00013698,2]
[339719180,1727892641256,-2655.35,0.00013698,2]
[339719181,1727892641266,-507.03377041,0.00013698,2]
[339719182,1727892641275,-500.0,0.00013698,2]
[339719183,1727892641285,-500.0,0.00013698,2]
[339719184,1727892641294,-500.0,0.00013698,2]
[339719185,1727892641304,-500.0,0.00013698,2]
[339719186,1727892641313,-500.0,0.00013698,2]
[339719187,1727892641323,-724.46,0.00013698,2]
[339719188,1727892641333,-500.0,0.00013698,2]
[339719189,1727892641342,-741.91,0.00013698,2]
[339719190,1727892641352,-500.0,0.00013698,2]
[339719191,1727892641361,-500.0,0.00013698,2]
[339719192,1727892641371,-500.0,0.00013698,2]
[339719193,1727892641383,-500.0,0.00013698,2]
[339719194,1727892641393,-500.0,0.00013698,2]
[339719195,1727892641403,-500.0,0.00013698,2]
[339719196,1727892641412,-500.0,0.00013698,2]
[339719197,1727892641422,-500.0,0.00013698,2]
[339719198,1727892641431,-1940.44,0.00013698,2]
[339719199,1727892641441,-835.58,0.00013698,2]
[339719200,1727892641450,-500.0,0.00013698,2]
[339719201,1727892641460,-500.0,0.00013698,2]
[339719202,1727892641469,-822.68,0.00013698,2]
[339719203,1727892641479,-500.0,0.00013698,2]
[339719204,1727892641488,-500.0,0.00013698,2]
[339719205,1727892641497,-503.4632699,0.00013698,2]
[339719206,1727892641506,-500.0,0.00013698,2]
[339719207,1727892641516,-346.58918215,0.00013698,2]
[339719208,1727892641524,-500.0,0.00013698,2]
[339719209,1727892641533,-500.0,0.00013698,2]
[339719210,1727892641542,-500.0,0.00013698,2]
[339719211,1727892641552,-500.0,0.00013698,2]
[339719212,1727892641561,-500.0,0.00013698,2]
[339719213,1727892641570,-500.0,0.00013698,2]
[339719214,1727892641580,-500.0,0.00013698,2]
[339719215,1727892641589,-770.32,0.00013698,2]
[339719216,1727892641599,-500.0,0.00013698,2]
[339719217,1727892641608,-615.48,0.00013698,2]
[339719218,1727892641618,-1048.99,0.00013698,2]
[339719219,1727892641628,-763.12,0.00013698,2]
[339719220,1727892641638,-549.0,0.00013698,2]
[339719221,1727892641649,-500.0,0.00013698,2]
[339719222,1727892641660,-608.98,0.00013698,2]
[339719223,1727892641670,-500.0,0.00013698,2]
[339719224,1727892641679,-953.86,0.00013698,2]
[339719225,1727892641691,-222.59135317,0.00013698,2]
[339719226,1727892641702,-500.0,0.00013698,2]
[339719227,1727892641711,-500.0,0.00013698,2]
[339719228,1727892641721,-500.0,0.00013698,2]
[339719229,1727892641730,-500.0,0.00013698,2]
[339719230,1727892641741,-500.0,0.00013698,2]
[339719231,1727892641752,-500.0,0.00013698,2]
[339719232,1727892641761,-738.52,0.00013698,2]
[339719233,1727892641771,-500.0,0.00013698,2]
[339719234,1727892641780,-500.0,0.00013698,2]
[339719235,1727892641789,-767.85,0.00013698,2]
[339719236,1727892641798,-502.06482612,0.00013698,2]
[339719237,1727892641807,-500.0,0.00013698,2]
[339719238,1727892641817,-500.0,0.00013698,2]
[339719239,1727892641827,-601.30721592,0.00013698,2]
[339719240,1727892641836,-500.0,0.00013698,2]
[339719241,1727892641846,-500.0,0.00013698,2]
[339719242,1727892641855,-500.0,0.00013698,2]
[339719243,1727892641865,-500.0,0.00013698,2]
[339719244,1727892641875,-599.19,0.00013698,2]
[339719245,1727892641886,-500.0,0.00013698,2]
[339719246,1727892641896,-500.0,0.00013698,2]
[339719247,1727892641906,-500.0,0.00013698,2]
[339719248,1727892641915,-501.65418803,0.00013698,2]
[339719249,1727892641926,-544.57,0.00013698,2]
[339719250,1727892641936,-500.0,0.00013698,2]
[339719251,1727892641946,-500.0,0.00013698,2]
[339719252,1727892641956,-500.0,0.00013698,2]
[339719253,1727892641966,-500.0,0.00013698,2]
[339719254,1727892641976,-334.66172764,0.00013698,2]
[339719255,1727892641986,-858.97,0.00013698,2]
[339719256,1727892641996,-500.0,0.00013698,2]
[339719257,1727892642005,-500.0,0.00013698,2]
[339719258,1727892642015,-500.0,0.00013698,2]
[339719259,1727892642024,-500.0,0.00013698,2]
[339719260,1727892642034,-500.0,0.00013698,2]
[339719261,1727892642044,-500.0,0.00013698,2]
[339719262,1727892642054,-500.0,0.00013698,2]
[339719263,1727892642064,-500.0,0.00013698,2]
[339719264,1727892642074,-500.0,0.00013698,2]
[339719265,1727892642084,-500.0,0.00013698,2]
[339719266,1727892642095,-571.17968517,0.00013698,2]
[339719267,1727892642104,-500.0,0.00013698,2]
[339719268,1727892642113,-500.0,0.00013698,2]
[339719269,1727892642123,-558.69081154,0.00013698,2]
[339719270,1727892642134,-500.0,0.00013698,2]
[339719271,1727892642144,-500.0,0.00013698,2]
[339719272,1727892642154,-506.74383691,0.00013698,2]
[339719273,1727892642164,-615.93499479,0.00013698,2]
[339719274,1727892642173,-793.06,0.00013698,2]
[339719275,1727892642183,-986.32,0.00013698,2]
[339719276,1727892642192,-500.0,0.00013698,2]
[339719277,1727892642202,-500.0,0.00013698,2]
[339719278,1727892642212,-500.0,0.00013698,2]
[339719279,1727892642222,-500.0,0.00013698,2]
[339719280,1727892642232,-500.0,0.00013698,2]
[339719281,1727892642241,-500.0,0.00013698,2]
[339719282,1727892642251,-500.0,0.00013698,2]
[339719283,1727892642261,-608.34,0.00013698,2]
[339719284,1727892642270,-500.0,0.00013698,2]
[339719286,1727892642280,-500.0,0.00013698,2]
[339719287,1727892642289,-813.33,0.00013698,2]
[339719288,1727892642299,-610.05,0.00013698,2]
[339719289,1727892642308,-500.0,0.00013698,2]
[339719290,1727892642318,-500.0,0.00013698,2]
[339719291,1727892642327,-500.0,0.00013698,2]
[339719292,1727892642336,-567.63,0.00013698,2]
[339719293,1727892642346,-500.0,0.00013698,2]
[339719294,1727892642356,-500.0,0.00013698,2]
[339719295,1727892642365,-500.0,0.00013698,2]
[339719296,1727892642374,-500.0,0.00013698,2]
[339719297,1727892642383,-639.99985833,0.00013698,2]
[339719298,1727892642393,-500.0,0.00013698,2]
[339719299,1727892642403,-500.0,0.00013698,2]
[339719300,1727892642413,-500.0,0.00013698,2]
[339719301,1727892642422,-500.0,0.00013698,2]
[339719302,1727892642432,-500.0,0.00013698,2]
[339719303,1727892642442,-500.0,0.00013698,2]
[339719304,1727892642451,-1072.8,0.00013698,2]
[339719305,1727892642461,-500.0,0.00013698,2]
[339719306,1727892642471,-500.0,0.00013698,2]
[339719307,1727892642480,-500.0,0.00013698,2]
[339719308,1727892642489,-500.0,0.00013698,2]
[339719309,1727892642499,-500.0,0.00013698,2]
[339719310,1727892642509,-500.0,0.00013698,2]
[339719311,1727892642519,-500.0,0.00013698,2]
[339719312,1727892642529,-500.0,0.00013698,2]
[339719313,1727892642538,-500.0,0.00013698,2]
[339719314,1727892642549,-500.0,0.00013698,2]
[339719315,1727892642559,-500.0,0.00013698,2]
[339719316,1727892642569,-500.0,0.00013698,2]
[339719317,1727892642578,-1404.22,0.00013698,2]
[339719318,1727892642588,-500.0,0.00013698,2]
[339719319,1727892642598,-500.0,0.00013698,2]
[339719320,1727892642608,-500.0,0.00013698,2]
[339719321,1727892642617,-500.0,0.00013698,2]
[339719322,1727892642627,-500.0,0.00013698,2]
[339719323,1727892642638,-500.0,0.00013698,2]
[339719324,1727892642647,-500.0,0.00013698,2]
[339719326,1727892642659,-500.0,0.00013698,2]
[339719327,1727892642671,-517.21119377,0.00013698,2]
[339719328,1727892642681,-500.0,0.00013698,2]
[339719329,1727892642691,-508.94073619,0.00013698,2]
[339719330,1727892642702,-500.0,0.00013698,2]
[339719331,1727892642712,-500.0,0.00013698,2]
[339719332,1727892642721,-888.27,0.00013698,2]
[339719333,1727892642731,-500.0,0.00013698,2]
[339719334,1727892642741,-620.35144194,0.00013698,2]
[339719335,1727892642751,-500.0,0.00013698,2]
[339719336,1727892642761,-500.0,0.00013698,2]
[339719337,1727892642771,-639.10591948,0.00013698,2]
[339719338,1727892642780,-837.82,0.00013698,2]
[339719339,1727892642790,-500.0,0.00013698,2]
[339719340,1727892642800,-500.0,0.00013698,2]
[339719341,1727892642810,-664.39,0.00013698,2]
[339719342,1727892642819,-634.13,0.00013698,2]
[339719343,1727892642828,-544.19,0.00013698,2]
[339719344,1727892642838,-500.0,0.00013698,2]
[339719345,1727892642848,-558.97048119,0.00013698,2]
[339719346,1727892642858,-507.65326574,0.00013698,2]
[339719347,1727892642867,-500.0,0.00013698,2]
[339719348,1727892642876,-500.0,0.00013698,2]
[339719349,1727892642887,-500.0,0.00013698,2]
[339719350,1727892642896,-500.0,0.00013698,2]
[339719351,1727892642905,-500.0,0.00013698,2]
[339719352,1727892642915,-500.0,0.00013698,2]
[339719353,1727892642924,-500.0,0.00013698,2]
[339719354,1727892642933,-704.83,0.00013698,2]
[339719355,1727892642943,-500.0,0.00013698,2]
[339719357,1727892642952,-500.0,0.00013698,2]
[339719358,1727892642962,-500.0,0.00013698,2]
[339719360,1727892642972,-500.0,0.00013698,2]
[339719362,1727892642982,-500.0,0.00013698,2]
[339719364,1727892642992,-750.63,0.00013698,2]
[339719366,1727892643002,-500.0,0.00013698,2]
[339719367,1727892643012,-500.0,0.00013698,2]
[339719368,1727892643023,-501.68,0.00013698,2]
[339719369,1727892643033,-854.37,0.00013698,2]
[339719370,1727892643044,-500.0,0.00013698,2]
[339719371,1727892643055,-563.1,0.00013698,2]
[339719372,1727892643065,-500.0,0.00013698,2]
[339719373,1727892643074,-500.0,0.00013698,2]
[339719374,1727892643084,-500.0,0.00013698,2]
[339719375,1727892643093,-500.0,0.00013698,2]
[339719376,1727892643103,-500.0,0.00013698,2]
[339719377,1727892643112,-500.0,0.00013698,2]
[339719378,1727892643122,-790.54,0.00013698,2]
[339719379,1727892643133,-500.0,0.00013698,2]
[339719380,1727892643143,-500.0,0.00013698,2]
[339719381,1727892643152,-500.0,0.00013698,2]
[339719382,1727892643162,-1000.0,0.00013698,2]
[339719383,1727892643171,-500.0,0.00013698,2]
[339719384,1727892643182,-852.86,0.00013698,2]
[339719385,1727892643192,-707.81,0.00013698,2]
[339719386,1727892643342,-500.0,0.00013698,2]
[339719387,1727892643352,-564.17,0.00013698,2]
[339719388,1727892643362,-590.35,0.00013698,2]
[339719389,1727892643372,-548.83,0.00013698,2]
[339719390,1727892643383,-500.0,0.00013698,2]
[339719391,1727892643394,-500.0,0.00013698,2]
[339719392,1727892643404,-500.0,0.00013698,2]
[339719393,1727892643414,-500.0,0.00013698,2]
[339719394,1727892643424,-500.0,0.00013698,2]
[339719395,1727892643435,-500.0,0.00013698,2]
[339719396,1727892643445,-500.0,0.00013698,2]
[339719397,1727892643455,-500.0,0.00013698,2]
[339719398,1727892643465,-495.28406569,0.00013698,2]
[339719399,1727892643475,-500.0,0.00013698,2]
[339719400,1727892643485,-1059.95,0.00013698,2]
[339719401,1727892643495,-500.0,0.00013698,2]
[339719402,1727892643506,-500.0,0.00013698,2]
[339719403,1727892643516,-500.0,0.00013698,2]
[339719404,1727892643526,-500.0,0.00013698,2]
[339719405,1727892643535,-500.0,0.00013698,2]
[339719406,1727892643544,-500.0,0.00013698,2]
[339719407,1727892643553,-500.0,0.00013698,2]
[339719408,1727892643563,-500.0,0.00013698,2]
[339719409,1727892643572,-500.0,0.00013698,2]
[339719410,1727892643582,-500.0,0.00013698,2]
[339719411,1727892643592,-500.0,0.00013698,2]
[339719412,1727892643601,-500.0,0.00013698,2]
[339719413,1727892643611,-500.0,0.00013698,2]
[339719414,1727892643621,-255.71771608,0.00013698,2]
[339719415,1727892643632,-500.0,0.00013698,2]
[339719416,1727892643641,-500.0,0.00013698,2]
[339719417,1727892643651,-878.1,0.00013698,2]
[339719418,1727892643664,-500.0,0.00013698,2]
[339719419,1727892643673,-500.0,0.00013698,2]
[339719420,1727892643683,-500.0,0.00013698,2]
[339719421,1727892643693,-500.0,0.00013698,2]
[339719422,1727892643703,-500.0,0.00013698,2]
[339719423,1727892643713,-500.0,0.00013698,2]
[339719424,1727892643722,-500.0,0.00013698,2]
[339719425,1727892643733,-500.0,0.00013698,2]
[339719426,1727892643743,-500.0,0.00013698,2]
[339719427,1727892643753,-500.0,0.00013698,2]
[339719428,1727892643763,-500.0,0.00013698,2]
[339719429,1727892643773,-500.0,0.00013698,2]
[339719430,1727892643782,-500.0,0.00013698,2]
[339719431,1727892643792,-500.0,0.00013698,2]
[339719432,1727892643801,-500.0,0.00013698,2]
[339719433,1727892643810,-500.0,0.00013698,2]
[339719434,1727892643820,-579.35,0.00013698,2]
[339719435,1727892643830,-518.48845143,0.00013698,2]
[339719436,1727892643840,-413.15005897,0.00013698,2]
[339719437,1727892643850,-386.55695275,0.00013698,2]
[339719438,1727892643858,-500.0,0.00013698,2]
[339719439,1727892643868,-500.0,0.00013698,2]
[339719440,1727892643878,-500.0,0.00013698,2]
[339719441,1727892643890,-500.0,0.00013698,2]
[339719442,1727892643899,-500.0,0.00013698,2]
[339719443,1727892643908,-943.31,0.00013698,2]
[339719444,1727892643917,-500.0,0.00013698,2]
[339719445,1727892643927,-500.0,0.00013698,2]
[339719446,1727892643935,-500.0,0.00013698,2]
[339719447,1727892643948,-500.0,0.00013698,2]
[339719448,1727892643958,-500.0,0.00013698,2]
[339719449,1727892643968,-500.0,0.00013698,2]
[339719450,1727892643978,-500.0,0.00013698,2]
[339719451,1727892643988,-530.53,0.00013698,2]
[339719452,1727892643997,-568.04,0.00013698,2]
[339719453,1727892644007,-612.48,0.00013698,2]
[339719454,1727892644016,-500.0,0.00013698,2]
[339719455,1727892644025,-500.0,0.00013698,2]
[339719456,1727892644035,-820.89,0.00013698,2]
[339719457,1727892644044,-500.0,0.00013698,2]
[339719458,1727892644054,-500.0,0.00013698,2]
[339719459,1727892644063,-500.0,0.00013698,2]
[339719460,1727892644072,-500.0,0.00013698,2]
[339719461,1727892644082,-500.0,0.00013698,2]
[339719462,1727892644091,-500.0,0.00013698,2]
[339719463,1727892644102,-778.09,0.00013698,2]
[339719464,1727892644111,-593.5,0.00013698,2]
[339719465,1727892644121,-500.0,0.00013698,2]
[339719466,1727892644132,-500.0,0.00013698,2]
[339719467,1727892644144,-1062.4,0.00013698,2]
[339719468,1727892644158,-500.0,0.00013698,2]
[339719469,1727892644168,-500.0,0.00013698,2]
[339719470,1727892644178,-500.0,0.00013698,2]
[339719471,1727892644189,-566.32,0.00013698,2]
[339719472,1727892644198,-500.0,0.00013698,2]
[339719473,1727892644208,-760.94,0.00013698,2]
[339719474,1727892644218,-712.51,0.00013698,2]
[339719475,1727892644228,-683.65,0.00013698,2]
[339719476,1727892644237,-500.0,0.00013698,2]
[339719477,1727892644247,-500.0,0.00013698,2]
[339719478,1727892644257,-577.96,0.00013698,2]
[339719479,1727892644267,-500.0,0.00013698,2]
[339719480,1727892644277,-500.0,0.00013698,2]
[339719481,1727892644288,-500.0,0.00013698,2]
[339719482,1727892644298,-500.0,0.00013698,2]
[339719483,1727892644308,-500.0,0.00013698,2]
[339719484,1727892644319,-490.20368748,0.00013698,2]
[339719485,1727892644329,-500.0,0.00013698,2]
[339719486,1727892644340,-500.0,0.00013698,2]
[339719487,1727892644350,-500.0,0.00013698,2]
[339719488,1727892644361,-1088.71,0.00013698,2]
[339719489,1727892644371,-450.23179114,0.00013698,2]
[339719490,1727892644386,-500.0,0.00013698,2]
[339719491,1727892644400,-500.0,0.00013698,2]
[339719492,1727892644410,-500.0,0.00013698,2]
[339719493,1727892644420,-500.0,0.00013698,2]
[339719494,1727892644430,-500.0,0.00013698,2]
[339719495,1727892644440,-500.0,0.00013698,2]
[339719496,1727892644449,-500.0,0.00013698,2]
[339719497,1727892644459,-500.0,0.00013698,2]
[339719498,1727892644468,-500.0,0.00013698,2]
[339719499,1727892644478,-1231.31,0.00013698,2]